fUST/lending_fUST_20240823
["ID","MTS","AMOUNT","RATE_DAILY","PERIOD"]
[335604765,1724373041127,-1238.694988,0.00018375,2]
[335604766,1724373041136,-1238.694988,0.00018375,2]
[335604767,1724373041145,-151.0,0.00018375,2]
[335604768,1724373041155,-3669.16,0.00018375,2]
[335604769,1724373041164,-151.0,0.00018375,2]
[335604770,1724373041174,-2100.85,0.00018375,2]
[335604771,1724373041184,-1102.008349,0.00018375,2]
[335604772,1724373041193,-1102.008349,0.00018375,2]
[335604773,1724373041204,-704.12,0.00018375,2]
[335604774,1724373041214,-500.0,0.00018375,2]
[335604775,1724373041223,-500.0,0.00018375,2]
[335604776,1724373041233,-761.801437,0.00018375,2]
[335604777,1724373041242,-761.801437,0.00018375,2]
[335604778,1724373041252,-463.46629803,0.00018375,2]
[335604779,1724373041262,-761.801437,0.00018375,2]
[335604780,1724373041273,-761.801437,0.00018375,2]
[335604781,1724373041283,-564.24,0.00018375,2]
[335604782,1724373041294,-5342.0,0.00018375,2]
[335604783,1724373041304,-151.0,0.00018375,2]
[335604784,1724373041315,-151.0,0.00018375,2]
[335604785,1724373041325,-151.0,0.00018375,2]
[335604786,1724373041336,-500.0,0.00018375,2]
[335604787,1724373041347,-151.0,0.00018375,2]
[335604788,1724373041358,-151.0,0.00018375,2]
[335604789,1724373041369,-151.0,0.00018375,2]
[335604790,1724373041381,-500.0,0.00018375,2]
[335604791,1724373041391,-500.0,0.00018375,2]
[335604792,1724373041400,-151.0,0.00018375,2]
[335604793,1724373041411,-807.94,0.00018375,2]
[335604794,1724373041421,-1511.82,0.00018375,2]
[335604795,1724373041433,-500.0,0.00018375,2]
[335604796,1724373041443,-500.0,0.00018375,2]
[335604797,1724373041453,-511.91669,0.00018375,2]
[335604798,1724373041465,-511.91669,0.00018375,2]
[335604799,1724373041475,-511.91669,0.00018375,2]
[335604800,1724373041490,-500.0,0.00018375,2]
[335604801,1724373041500,-511.91669,0.00018375,2]
[335604802,1724373041509,-511.91669,0.00018375,2]
[335604803,1724373041519,-511.91669,0.00018375,2]
[335604804,1724373041530,-500.0,0.00018375,2]
[335604805,1724373041540,-500.0,0.00018375,2]
[335604806,1724373041550,-2552.24,0.00018375,2]
[335604807,1724373041563,-500.0,0.00018375,2]
[335604808,1724373041574,-500.0,0.00018375,2]
[335604809,1724373041584,-353.26959,0.00018375,2]
[335604810,1724373041596,-353.26959,0.00018375,2]
[335604811,1724373041606,-740.76,0.00018375,2]
[335604812,1724373041617,-353.26959,0.00018375,2]
[335604813,1724373041628,-353.26959,0.00018375,2]
[335604814,1724373041637,-353.26959,0.00018375,2]
[335604815,1724373041646,-353.26959,0.00018375,2]
[335604816,1724373041656,-151.0,0.00018375,2]
[335604817,1724373041667,-151.0,0.00018375,2]
[335604818,1724373041678,-281.704935,0.00018375,2]
[335604819,1724373041688,-500.0,0.00018375,2]
[335604820,1724373041698,-500.0,0.00018375,2]
[335604821,1724373041709,-936.23,0.00018375,2]
[335604822,1724373041719,-500.0,0.00018375,2]
[335604823,1724373041730,-500.0,0.00018375,2]
[335604824,1724373041740,-500.0,0.00018375,2]
[335604825,1724373041751,-587.56,0.00018375,2]
[335604826,1724373041761,-500.0,0.00018375,2]
[335604827,1724373041770,-169.687942,0.00018375,2]
[335604828,1724373041780,-169.687942,0.00018375,2]
[335604829,1724373041790,-169.687942,0.00018375,2]
[335604830,1724373041800,-169.687942,0.00018375,2]
[335604831,1724373041811,-500.0,0.00018375,2]
[335604832,1724373041822,-500.0,0.00018376,2]
[335604833,1724373041832,-499.89726181,0.00018376,2]
[335604834,1724373041841,-500.0,0.00018376,2]
[335604835,1724373041852,-500.0,0.00018376,2]
[335604836,1724373041863,-500.0,0.00018376,2]
[335604837,1724373041873,-500.0,0.00018376,2]
[335604838,1724373041886,-500.0,0.00018376,2]
[335604839,1724373041897,-500.0,0.00018376,2]
[335604840,1724373041908,-814.58,0.00018376,2]
[335604841,1724373041918,-500.0,0.00018376,2]
[335604842,1724373041929,-500.0,0.00018376,2]
[335604843,1724373041940,-500.0,0.00018376,2]
[335604844,1724373041950,-500.0,0.00018376,2]
[335604845,1724373041960,-500.0,0.00018376,2]
[335604846,1724373041971,-500.0,0.00018376,2]
[335604847,1724373041982,-560.89,0.00018376,2]
[335604848,1724373041994,-500.0,0.00018376,2]
[335604849,1724373042005,-500.0,0.00018376,2]
[335604850,1724373042014,-500.0,0.00018376,2]
[335604851,1724373042023,-500.0,0.00018376,2]
[335604852,1724373042032,-500.0,0.00018376,2]
[335604853,1724373042042,-500.0,0.00018376,2]
[335604854,1724373042052,-500.0,0.00018376,2]
[335604855,1724373042062,-500.0,0.00018376,2]
[335604856,1724373042072,-200.0,0.00018376,2]
[335604857,1724373042083,-500.0,0.00018376,2]
[335604858,1724373042093,-500.0,0.00018376,2]
[335604859,1724373042103,-500.0,0.00018376,2]
[335604860,1724373042114,-500.0,0.00018376,2]
[335604861,1724373042124,-342.59378419,0.00018376,2]
[335604862,1724373042142,-157.40621581,0.00018376,2]
[335604863,1724373042152,-500.0,0.00018376,2]
[335604864,1724373042161,-500.0,0.00018376,2]
[335604865,1724373042170,-595.67163458,0.00018376,2]
[335604866,1724373042180,-500.0,0.00018376,2]
[335604867,1724373042189,-500.0,0.00018376,2]
[335604868,1724373042199,-567.11318028,0.00018376,2]
[335604869,1724373042208,-838.52,0.00018376,2]
[335604870,1724373042218,-500.0,0.00018376,2]
[335604871,1724373042228,-500.0,0.00018376,2]
[335604872,1724373042238,-500.0,0.00018376,2]
[335604873,1724373042247,-500.0,0.00018376,2]
[335604874,1724373042257,-500.0,0.00018376,2]
[335604875,1724373042266,-500.0,0.00018376,2]
[335604876,1724373042275,-500.0,0.00018376,2]
[335604877,1724373042285,-500.0,0.00018376,2]
[335604878,1724373042294,-500.0,0.00018376,2]
[335604879,1724373042304,-500.0,0.00018376,2]
[335604880,1724373042313,-500.0,0.00018376,2]
[335604881,1724373042322,-500.0,0.00018376,2]
[335604882,1724373042332,-578.7,0.00018376,2]
[335604883,1724373042342,-500.0,0.00018376,2]
[335604884,1724373042353,-500.0,0.00018376,2]
[335604885,1724373042362,-500.0,0.00018376,2]
[335604886,1724373042372,-500.0,0.00018376,2]
[335604887,1724373042383,-500.0,0.00018376,2]
[335604888,1724373042392,-500.0,0.00018376,2]
[335604889,1724373042401,-500.0,0.00018376,2]
[335604890,1724373042410,-500.0,0.00018376,2]
[335604891,1724373042420,-500.0,0.00018376,2]
[335604892,1724373042429,-790.03,0.00018376,2]
[335604893,1724373042439,-500.0,0.00018376,2]
[335604894,1724373042449,-500.0,0.00018376,2]
[335604895,1724373042458,-518.93136995,0.00018376,2]
[335604896,1724373042468,-742.61,0.00018376,2]
[335604897,1724373042479,-1042.1,0.00018376,2]
[335604898,1724373042489,-500.0,0.00018376,2]
[335604899,1724373042499,-500.0,0.00018376,2]
[335604900,1724373042509,-500.0,0.00018376,2]
[335604901,1724373042519,-500.0,0.00018376,2]
[335604902,1724373042528,-500.0,0.00018376,2]
[335604903,1724373042538,-524.44,0.00018376,2]
[335604904,1724373042548,-500.0,0.00018376,2]
[335604905,1724373042558,-500.0,0.00018376,2]
[335604906,1724373042567,-500.0,0.00018376,2]
[335604907,1724373042577,-502.3796954,0.00018376,2]
[335604908,1724373042588,-500.0,0.00018376,2]
[335604909,1724373042597,-500.0,0.00018376,2]
[335604910,1724373042607,-500.0,0.00018376,2]
[335604911,1724373042616,-500.0,0.00018376,2]
[335604912,1724373042626,-500.0,0.00018376,2]
[335604913,1724373042636,-500.0,0.00018376,2]
[335604914,1724373042645,-500.0,0.00018376,2]
[335604915,1724373042654,-500.0,0.00018376,2]
[335604916,1724373042664,-500.0,0.00018376,2]
[335604917,1724373042673,-500.0,0.00018376,2]
[335604918,1724373042682,-500.0,0.00018376,2]
[335604919,1724373042691,-500.0,0.00018376,2]
[335604920,1724373042701,-500.0,0.00018376,2]
[335604921,1724373042710,-778.71,0.00018376,2]
[335604922,1724373042719,-500.0,0.00018376,2]
[335604923,1724373042728,-500.0,0.00018376,2]
[335604924,1724373042737,-500.0,0.00018376,2]
[335604925,1724373042747,-500.0,0.00018376,2]
[335604926,1724373042757,-500.0,0.00018376,2]
[335604927,1724373042767,-501.58067388,0.00018376,2]
[335604928,1724373042777,-500.0,0.00018376,2]
[335604929,1724373042786,-383.55210149,0.00018376,2]
[335604930,1724373042795,-500.0,0.00018376,2]
[335604931,1724373042804,-500.0,0.00018376,2]
[335604932,1724373042814,-500.0,0.00018376,2]
[335604933,1724373042823,-500.0,0.00018376,2]
[335604934,1724373042832,-500.0,0.00018376,2]
[335604935,1724373042842,-500.0,0.00018376,2]
[335604936,1724373042852,-500.0,0.00018376,2]
[335604937,1724373042863,-500.0,0.00018376,2]
[335604938,1724373042876,-500.0,0.00018376,2]
[335604940,1724373042887,-173.39568203,0.00018376,2]
[335604941,1724373042897,-500.0,0.00018376,2]
[335604943,1724373042907,-151.0,0.00018376,2]
[335604945,1724373042919,-504.12106927,0.00018376,2]
[335604946,1724373042928,-500.0,0.00018376,2]
[335604947,1724373042939,-500.0,0.00018376,2]
[335604948,1724373042950,-303.4939972,0.00018376,2]
[335604949,1724373042961,-500.0,0.00018376,2]
[335604950,1724373042971,-500.0,0.00018376,2]
[335604951,1724373042980,-500.0,0.00018376,2]
[335604952,1724373042990,-500.0,0.00018376,2]
[335604953,1724373043001,-500.0,0.00018376,2]
[335604954,1724373043010,-500.0,0.00018376,2]
[335604955,1724373043020,-500.0,0.00018376,2]
[335604956,1724373043032,-500.0,0.00018376,2]
[335604957,1724373043042,-500.0,0.00018376,2]
[335604958,1724373043052,-500.00083681,0.00018376,2]
[335604959,1724373043063,-500.0,0.00018376,2]
[335604960,1724373043072,-500.0,0.00018376,2]
[335604961,1724373043082,-500.0,0.00018376,2]
[335604962,1724373043092,-151.0,0.00018376,2]
[335604963,1724373043103,-500.0,0.00018376,2]
[335604964,1724373043113,-500.0,0.00018376,2]
[335604965,1724373043123,-538.85515982,0.00018376,2]
[335604966,1724373043133,-500.0,0.00018376,2]
[335604967,1724373043143,-500.0,0.00018376,2]
[335604968,1724373043153,-500.0,0.00018376,2]
[335604969,1724373043163,-500.0,0.00018376,2]
[335604970,1724373043172,-151.0,0.00018376,2]
[335604971,1724373043183,-243.05376,0.00018376,2]
[335604972,1724373043195,-662.45,0.00018376,2]
[335604973,1724373043205,-500.0,0.00018376,2]
[335604974,1724373043215,-500.0,0.00018376,2]
[335604976,1724373043224,-500.0,0.00018376,2]
[335604977,1724373043235,-500.0,0.00018376,2]
[335604978,1724373043245,-320.51731545,0.00018376,2]
[335604979,1724373043254,-500.0,0.00018376,2]
[335604980,1724373043264,-500.0,0.00018376,2]
[335604981,1724373043274,-500.0,0.00018376,2]
[335604982,1724373043283,-500.0,0.00018376,2]
[335604983,1724373043295,-500.0,0.00018376,2]
[335604984,1724373043309,-500.0,0.00018376,2]
[335604985,1724373043319,-490.25187308,0.00018376,2]
[335604986,1724373043329,-500.0,0.00018376,2]
[335604987,1724373043339,-500.0,0.00018376,2]
[335604988,1724373043348,-500.0,0.00018376,2]
[335604989,1724373043359,-1055.19,0.00018376,2]
[335604990,1724373043371,-500.0,0.00018376,2]
[335604991,1724373043384,-439.10986591,0.00018376,2]
[335604992,1724373043400,-500.0,0.00018376,2]
[335604993,1724373043409,-523.57,0.00018376,2]
[335604994,1724373043419,-500.0,0.00018376,2]
[335604995,1724373043428,-500.0,0.00018376,2]
[335604996,1724373043437,-500.0,0.00018376,2]
[335604997,1724373043447,-214.436289,0.00018376,2]
[335604998,1724373043457,-214.436289,0.00018376,2]
[335604999,1724373043466,-500.0,0.00018376,2]
[335605000,1724373043475,-500.0,0.00018376,2]
[335605001,1724373043487,-500.0,0.00018376,2]
[335605002,1724373043496,-214.436289,0.00018376,2]
[335605003,1724373043506,-214.436289,0.00018376,2]
[335605004,1724373043515,-500.0,0.00018376,2]
[335605005,1724373043525,-589.60609884,0.00018376,2]
[335605006,1724373043534,-500.0,0.00018376,2]
[335605007,1724373043545,-500.0,0.00018376,2]
[335605008,1724373043555,-500.0,0.00018376,2]
[335605009,1724373043565,-500.0,0.00018376,2]
[335605010,1724373043576,-500.0,0.00018376,2]
[335605011,1724373043587,-500.0,0.00018376,2]
[335605012,1724373043596,-527.40122832,0.00018376,2]
[335605013,1724373043607,-500.0,0.00018376,2]
[335605014,1724373043618,-500.0,0.00018376,2]
[335605015,1724373043631,-500.0,0.00018376,2]
[335605016,1724373043640,-500.0,0.00018376,2]
[335605017,1724373043650,-500.0,0.00018376,2]
[335605018,1724373043660,-500.0,0.00018376,2]
[335605020,1724373043671,-500.0,0.00018376,2]
[335605021,1724373043681,-500.0,0.00018376,2]
[335605022,1724373043692,-500.0,0.00018376,2]
[335605023,1724373043701,-500.0,0.00018376,2]
[335605024,1724373043712,-500.0,0.00018376,2]
[335605025,1724373043722,-69.57400061,0.00018376,2]
[335605028,1724373044640,-500.0,0.00018275,2]
[335605029,1724373044650,-469.686022,0.00018357,2]
[335605030,1724373044659,-469.686022,0.00018365,2]
[335605031,1724373044669,-469.686022,0.00018365,2]
[335605032,1724373044678,-469.686022,0.00018365,2]
[335605033,1724373044687,-469.686022,0.00018365,2]
[335605034,1724373044696,-469.686022,0.00018366,2]
[335605035,1724373044706,-469.686022,0.00018367,2]
[335605036,1724373044715,-75.297846,0.00018367,2]
[335605037,1724373044740,-394.388176,0.00018367,2]
[335605038,1724373044749,-469.686022,0.00018375,2]
[335605039,1724373044759,-469.686022,0.00018375,2]
[335605040,1724373044768,-461.92395731,0.00018376,9]
[335605041,1724373044777,-230.168554,0.00018376,2]
[335605072,1724373046267,-691.02362734,0.00018285,2]
[335605095,1724373736261,2000.0,0.00027,120]
[335605101,1724373809768,198.0,0.0001211,2]
[335605102,1724373828574,300.0,0.00027,120]
[335605103,1724373895743,350.0,0.00027,120]
[335605106,1724374002416,150.0,0.00027,120]
[335605192,1724374238638,-154.74467129,0.00013599,2]
[335605193,1724374238650,-154.73944084,0.00013697,2]
[335605194,1724374238662,-285.57995,0.00014247,2]
[335605195,1724374238672,-501.60274778,0.000154,4]
[335605196,1724374238685,-277.72945572,0.00017825,2]
[335605197,1724374238698,-277.72945572,0.00017825,2]
[335605198,1724374238709,-336.96351403,0.00018081,2]
[335605199,1724374238720,-2607.8774414,0.00018108,2]
[335605200,1724374238733,-5623.26419453,0.00018113,2]
[335605201,1724374238747,-300.0,0.00018163,2]
[335605202,1724374238761,-554.52147095,0.00018164,2]
[335605203,1724374238774,-2000.0,0.00018164,2]
[335605204,1724374238788,-554.52147091,0.00018167,2]
[335605205,1724374238802,-554.52147091,0.0001817,2]
[335605206,1724374238816,-554.52147091,0.00018172,2]
[335605207,1724374238828,-623.73,0.00018174,2]
[335605208,1724374238840,-585.09,0.00018174,2]
[335605209,1724374238850,-1627.53,0.00018174,2]
[335605210,1724374238861,-500.0,0.00018174,2]
[335605211,1724374238875,-506.21,0.00018174,2]
[335605212,1724374238885,-711.85,0.00018174,2]
[335605213,1724374238897,-500.0,0.00018174,2]
[335605214,1724374238911,-500.0,0.00018174,2]
[335605215,1724374238924,-5000.1,0.00018174,2]
[335605216,1724374238937,-847.81,0.00018174,2]
[335605217,1724374238948,-669.11,0.00018174,2]
[335605218,1724374238959,-500.0,0.00018174,2]
[335605219,1724374238972,-500.0,0.00018174,2]
[335605220,1724374238985,-3897.25,0.00018174,2]
[335605221,1724374238999,-245.04626712,0.00018174,2]
[335605222,1724374239015,-500.0,0.00018174,2]
[335605223,1724374239027,-864.31,0.00018174,2]
[335605224,1724374239038,-1987.98022259,0.00018175,2]
[335605225,1724374239049,-554.52147091,0.00018175,2]
[335605226,1724374239061,-12.06914844,0.00018175,2]
[335605227,1724374239084,-5303.53889361,0.00018175,2]
[335605264,1724374243614,-336.96351403,0.00018081,2]
[335605265,1724374243630,-2668.85,0.00018174,2]
[335605266,1724374243645,-500.0,0.00018174,2]
[335605267,1724374243659,-66314.94186887,0.00018175,2]
[335605268,1724374243672,-600.0,0.00018208,2]
[335605269,1724374243685,-27753.9295109,0.00018253,2]
[335605270,1724374243699,-27753.9295109,0.00018254,2]
[335605271,1724374243711,-55507.8590218,0.00018254,2]
[335605272,1724374243722,-83261.7885327,0.00018255,2]
[335605273,1724374243734,-500.0,0.00018262,2]
[335605274,1724374243748,-479.2610663,0.00018262,2]
[335605276,1724374243761,-500.0,0.00018262,2]
[335605278,1724374243772,-500.0,0.00018262,2]
[335605280,1724374243783,-156.83277482,0.00018262,2]
[335605282,1724374243795,-215.94686384,0.00018262,2]
[335605284,1724374243806,-500.0,0.00018263,2]
[335605287,1724374243817,-500.0,0.00018263,2]
[335605290,1724374243828,-500.0,0.00018263,2]
[335605294,1724374243839,-500.0,0.00018263,2]
[335605296,1724374243850,-500.0,0.00018263,2]
[335605298,1724374243860,-503.57326137,0.00018263,2]
[335605300,1724374243871,-500.0,0.00018263,2]
[335605302,1724374243882,-500.0,0.00018263,2]
[335605304,1724374243895,-500.0,0.00018263,2]
[335605306,1724374243906,-500.0,0.00018263,2]
[335605307,1724374243921,-500.0,0.00018263,2]
[335605308,1724374243933,-500.0,0.00018263,2]
[335605309,1724374243944,-500.0,0.00018263,2]
[335605310,1724374243956,-500.0,0.00018263,2]
[335605311,1724374243967,-500.0,0.00018263,2]
[335605312,1724374243979,-500.0,0.00018263,2]
[335605313,1724374243990,-500.0,0.00018263,2]
[335605314,1724374244002,-500.0,0.00018263,2]
[335605315,1724374244013,-850.0,0.00018263,2]
[335605316,1724374244025,-500.0,0.00018263,2]
[335605318,1724374244036,-500.0,0.00018263,2]
[335605319,1724374244048,-500.0,0.00018263,2]
[335605320,1724374244059,-500.0,0.00018263,2]
[335605321,1724374244072,-500.0,0.00018263,2]
[335605322,1724374244082,-500.0,0.00018263,2]
[335605323,1724374244093,-500.0,0.00018263,2]
[335605324,1724374244104,-500.0,0.00018263,2]
[335605325,1724374244115,-500.0,0.00018263,2]
[335605326,1724374244127,-585.28,0.00018263,2]
[335605327,1724374244138,-500.0,0.00018263,2]
[335605328,1724374244149,-500.0,0.00018263,2]
[335605329,1724374244160,-500.0,0.00018263,2]
[335605330,1724374244171,-500.0,0.00018263,2]
[335605331,1724374244182,-2897.42,0.00018263,2]
[335605332,1724374244193,-500.0,0.00018263,2]
[335605333,1724374244204,-1377.56,0.00018263,2]
[335605334,1724374244215,-500.0,0.00018263,2]
[335605335,1724374244226,-1203.9,0.00018263,2]
[335605336,1724374244237,-500.0,0.00018263,2]
[335605337,1724374244248,-500.0,0.00018263,2]
[335605338,1724374244259,-500.0,0.00018263,2]
[335605339,1724374244270,-500.0,0.00018263,2]
[335605340,1724374244280,-200.0,0.00018263,2]
[335605341,1724374244292,-373.2009923,0.00018263,2]
[335605342,1724374244303,-500.0,0.00018263,2]
[335605343,1724374244314,-500.0,0.00018263,2]
[335605344,1724374244324,-500.0,0.00018263,2]
[335605345,1724374244334,-500.0,0.00018263,2]
[335605346,1724374244345,-500.0,0.00018263,2]
[335605347,1724374244355,-834.78,0.00018263,2]
[335605348,1724374244364,-500.0,0.00018263,2]
[335605349,1724374244374,-195.06760842,0.00018263,2]
[335605350,1724374244383,-500.0,0.00018263,2]
[335605351,1724374244393,-500.0,0.00018263,2]
[335605352,1724374244826,-2075.6,0.00018263,2]
[335605353,1724374244844,-500.0,0.00018263,2]
[335605354,1724374244854,-500.0,0.00018263,2]
[335605355,1724374244864,-500.0,0.00018263,2]
[335605356,1724374244874,-1706.57,0.00018263,2]
[335605357,1724374244886,-503.94550365,0.00018263,2]
[335605358,1724374244898,-500.0,0.00018263,2]
[335605359,1724374244907,-840.04,0.00018263,2]
[335605360,1724374244916,-500.0,0.00018263,2]
[335605361,1724374244927,-3747.57,0.00018263,2]
[335605362,1724374244936,-500.0,0.00018263,2]
[335605363,1724374244946,-500.0,0.00018263,2]
[335605364,1724374244956,-554.59,0.00018263,2]
[335605365,1724374244968,-500.0,0.00018263,2]
[335605366,1724374244978,-500.0,0.00018263,2]
[335605367,1724374244988,-500.0,0.00018263,2]
[335605368,1724374244998,-500.0,0.00018263,2]
[335605369,1724374245008,-500.0,0.00018263,2]
[335605370,1724374245018,-1310.6,0.00018263,2]
[335605371,1724374245027,-791.46,0.00018263,2]
[335605372,1724374245036,-500.0,0.00018263,2]
[335605373,1724374245046,-500.0,0.00018263,2]
[335605374,1724374245057,-500.0,0.00018263,2]
[335605375,1724374245066,-507.34164375,0.00018263,2]
[335605376,1724374245077,-558.46,0.00018263,2]
[335605377,1724374245086,-500.0,0.00018263,2]
[335605378,1724374245096,-500.0,0.00018263,2]
[335605379,1724374245106,-500.0,0.00018263,2]
[335605380,1724374245116,-500.0,0.00018263,2]
[335605381,1724374245125,-500.0,0.00018263,2]
[335605382,1724374245135,-500.0,0.00018263,2]
[335605383,1724374245144,-525.39,0.00018263,2]
[335605384,1724374245154,-500.0,0.00018263,2]
[335605385,1724374245164,-500.0,0.00018263,2]
[335605386,1724374245174,-500.0,0.00018263,2]
[335605387,1724374245184,-500.0,0.00018263,2]
[335605388,1724374245194,-500.0,0.00018263,2]
[335605389,1724374245203,-998.67,0.00018263,2]
[335605390,1724374245214,-546.32364601,0.00018263,2]
[335605391,1724374245223,-500.0,0.00018263,2]
[335605392,1724374245233,-500.0,0.00018263,2]
[335605393,1724374245244,-575.98971542,0.00018263,2]
[335605394,1724374245255,-1195.94,0.00018263,2]
[335605395,1724374245265,-500.0,0.00018263,2]
[335605396,1724374245274,-1515.1,0.00018263,2]
[335605397,1724374245283,-500.0,0.00018263,2]
[335605398,1724374245293,-500.0,0.00018263,2]
[335605399,1724374245302,-500.0,0.00018263,2]
[335605400,1724374245312,-691.06,0.00018263,2]
[335605401,1724374245321,-500.0,0.00018263,2]
[335605402,1724374245331,-500.0,0.00018263,2]
[335605403,1724374245340,-500.0,0.00018263,2]
[335605404,1724374245350,-500.0,0.00018263,2]
[335605405,1724374245360,-770.46,0.00018263,2]
[335605406,1724374245369,-500.0,0.00018263,2]
[335605407,1724374245378,-500.0,0.00018263,2]
[335605408,1724374245388,-500.0,0.00018263,2]
[335605409,1724374245397,-743.95,0.00018263,2]
[335605410,1724374245407,-561.92,0.00018263,2]
[335605411,1724374245417,-500.0,0.00018263,2]
[335605412,1724374245426,-500.0,0.00018263,2]
[335605413,1724374245435,-500.0,0.00018263,2]
[335605414,1724374245444,-500.0,0.00018263,2]
[335605415,1724374245454,-500.0,0.00018263,2]
[335605416,1724374245463,-500.0,0.00018263,2]
[335605417,1724374245473,-500.0,0.00018263,2]
[335605418,1724374245482,-500.0,0.00018263,2]
[335605419,1724374245491,-500.0,0.00018263,2]
[335605420,1724374245500,-500.0,0.00018263,2]
[335605421,1724374245510,-500.0,0.00018263,2]
[335605422,1724374245519,-500.0,0.00018263,2]
[335605423,1724374245528,-500.0,0.00018263,2]
[335605424,1724374245538,-500.0,0.00018263,2]
[335605425,1724374245547,-500.0,0.00018263,2]
[335605426,1724374245556,-500.0,0.00018263,2]
[335605427,1724374245566,-500.0,0.00018263,2]
[335605428,1724374245575,-746.26,0.00018263,2]
[335605429,1724374245584,-500.0,0.00018263,2]
[335605430,1724374245594,-1625.24,0.00018263,2]
[335605431,1724374245603,-500.0,0.00018263,2]
[335605432,1724374245613,-500.0,0.00018263,2]
[335605433,1724374245622,-500.0,0.00018263,2]
[335605434,1724374245632,-500.0,0.00018263,2]
[335605435,1724374245642,-500.0,0.00018263,2]
[335605436,1724374245652,-1692.49,0.00018263,2]
[335605437,1724374245661,-500.0,0.00018263,2]
[335605438,1724374245671,-27753.9295109,0.00018263,2]
[335605439,1724374245681,-3967.34444779,0.00018264,9]
[335605440,1724374245691,-2181.32,0.00018264,2]
[335605441,1724374245701,-500.0,0.00018264,2]
[335605442,1724374245712,-500.0,0.00018264,2]
[335605443,1724374245721,-500.0,0.00018264,2]
[335605444,1724374245730,-500.0,0.00018264,2]
[335605445,1724374245740,-500.0,0.00018264,2]
[335605446,1724374245750,-397.62257857,0.00018264,2]
[335605447,1724374245760,-500.0,0.00018264,2]
[335605448,1724374245770,-500.0,0.00018264,2]
[335605449,1724374245780,-500.0,0.00018264,2]
[335605450,1724374245790,-500.0,0.00018264,2]
[335605451,1724374245799,-500.0,0.00018264,2]
[335605452,1724374245808,-500.0,0.00018264,2]
[335605453,1724374245818,-500.0,0.00018264,2]
[335605454,1724374245827,-450.02647187,0.00018264,2]
[335605455,1724374245837,-500.0,0.00018264,2]
[335605456,1724374245847,-500.0,0.00018264,2]
[335605457,1724374245856,-575.46618302,0.00018264,2]
[335605458,1724374245866,-500.0,0.00018264,2]
[335605459,1724374245875,-1607.03,0.00018264,2]
[335605460,1724374245885,-521.68,0.00018264,2]
[335605461,1724374245898,-500.0,0.00018264,2]
[335605462,1724374245908,-615.49,0.00018264,2]
[335605463,1724374245918,-500.0,0.00018264,2]
[335605464,1724374245927,-500.0,0.00018264,2]
[335605465,1724374245938,-500.0,0.00018264,2]
[335605466,1724374245949,-628.4,0.00018264,2]
[335605467,1724374245959,-411.42788502,0.00018264,2]
[335605468,1724374245971,-500.0,0.00018264,2]
[335605469,1724374245981,-834.41,0.00018264,2]
[335605470,1724374245991,-500.0,0.00018264,2]